Cogmind - Beta 13 X1 @@@ ROGUE MODE // 2023.07.24 @ 00:12:26 Player: Runia Result: Destroyed by D-53 Grenadier with Mini Grenade Launcher Performance ------------- Evolutions (0) 0 Regions Visited (2) 400 Robots Destroyed (22) 110 Value Destroyed (461) 461 Prototype IDs (2) 40 Alien Tech Used (0) 0 Bonus (0) 0 TOTAL SCORE: 1011 Bonus ------- None Cogmind --------- Core Integrity 0/250 Matter 273/300 Energy 93/100 System Corruption 0% Temperature Cool (0) Movement Rolling (130) Ox2 Location -10/Mines Parts ------- > --- POWER (1) -------- (None) > --- PROPULSION (2) --- Compact Wheel > --- UTILITY (2) ------ High-capacity Storage Unit Targeting Computer > --- WEAPON (2) ------- (None) > --- INVENTORY (20) --- Ion Engine Light Nuclear Core Light Treads Large Matter Pod (150) Light Armor Plating Small Laser Assault Rifle Assault Rifle Light Cannon Rocket Launcher Hammer Peak State ------------ > --- POWER ------------ Ion Engine > --- PROPULSION ------- Light Treads Compact Wheel > --- UTILITY ---------- High-capacity Storage Unit Targeting Computer > --- WEAPON ----------- EM Pulse Gun Rocket Launcher > --- INVENTORY -------- Ion Engine Light Nuclear Core Light Treads Compact Wheel Large Matter Pod Light Armor Plating EM Pulse Gun Small Laser Assault Rifle Assault Rifle Light Cannon Hammer [Rating: 9] Favorites ----------- Power Ion Engine Engine Ion Engine Propulsion Light Treads Treads Light Treads Leg Aluminum Leg Wheel Wheel Utility High-capacity Storage Unit Storage High-capacity Storage Unit Processor Targeting Computer Protection Light Armor Plating Weapon Assault Rifle Energy Gun Small Laser Ballistic Gun Assault Rifle Launcher Rocket Launcher Build | -11 -10 -10 ------- Run | Jun Mat Min Slots Evolved . | . . . Power . | . . . Propulsion . | . . . Utility . | . . . Weapon . | . . . Parts Attached 20 | 2 12 6 Power 1 | . 1 . Engine 1 | . 1 . Core . | . . . Reactor . | . . . Propulsion 7 | 2 3 2 Treads 4 | 2 1 1 Leg . | . . . Wheel 3 | . 2 1 Hover . | . . . Flight . | . . . Utility 4 | . 4 . Device . | . . . Storage 2 | . 2 . Processor 1 | . 1 . Hackware . | . . . Protection 1 | . 1 . Artifact . | . . . Weapon 8 | . 4 4 Energy Gun 3 | . . 3 Energy Cannon . | . . . Ballistic Gun 4 | . 4 . Ballistic Cannon . | . . . Launcher 1 | . . 1 Special Weapon . | . . . Impact Weapon . | . . . Slashing Weapon . | . . . Piercing Weapon . | . . . Special Melee Weapon . | . . . Unidentified Prototypes . | . . . Parts Lost 9 | . 1 8 Power 1 | . . 1 Propulsion 4 | . 1 3 Utility . | . . . Weapon 4 | . . 4 Highest Loss Streak 6 | . 1 6 To Critical Strikes 1 | . . 1 Average Slot Usage (%) 93 | . 92 98 Engine 13 | . 14 13 Treads 14 | . 14 13 Wheel 13 | . 13 14 Storage 14 | . 14 14 Processor 4 | . 2 14 Protection 3 | . 4 . Energy Gun 9 | . 9 9 Ballistic Gun 18 | . 18 18 Naked Turns . | . . . Heaviest Build 51 | 13 51 51 Greatest Support 40 | 40 40 16 Greatest Overweight (x) 5 | . 5 3 Average Overweight (x) 3 | . 3 2 Largest Inventory Capacity 20 | 8 20 20 Average Capacity 19 | 8 19 20 Most Carried 14 | 6 12 14 Average Carried 8 | 4 8 12 Final Capacity 20 | 8 20 20 Final Carried 12 | 4 12 11 Class Distribution -------------------- 100% | Mutant Dominant Class ---------------- Mutant | -10/Materials Mutant | -10/Mines Resources | -11 -10 -10 ----------- Run | Jun Mat Min Matter Collected 742 | 200 324 218 Remotely . | . . . Salvage Created 706 | . 544 162 Parts 37 | . 22 15 Haulers Intercepted 2 | . 2 . Recyclers Shooed 3 | . 3 . Parts Field Recycled . | . . . Retrieved Matter . | . . . Parts Self-Destructed . | . . . Prevented . | . . . Kills | -11 -10 -10 ------- Run | Jun Mat Min Combat Hostiles Destroyed 18 | . 10 8 Guns 15 | . 10 5 AOE 3 | . . 3 Classes Destroyed 5 | . 5 . Hauler 2 | . 2 . Recycler 1 | . 1 . Watcher 1 | . 1 . Swarmer 9 | . 3 6 Grunt 9 | . 7 2 Best Kill Streak 3 | . 3 3 Combat Bots Only 3 | . 3 3 Max Kills in Single Turn 2 | . 1 2 Gunslinging . | . . . Exploded 2 | . . 2 Melee . | . . . Uniques/NPCs Destroyed . | . . . Combat | -11 -10 -10 -------- Run | Jun Mat Min Damage Taken 1228 | . 470 758 Core 265 | . 60 205 Absorbed by Shields . | . . . Core Remaining (%) 100 | 100 . . Volleys Fired 67 | . 49 18 Largest 2 | . 2 2 Hottest 90 | . 90 80 Shots Fired 132 | . 98 34 Gun 130 | . 98 32 Cannon . | . . . Launcher 2 | . . 2 Special . | . . . Kinetic 79 | . 63 16 Thermal 35 | . 35 . Explosive 2 | . . 2 Electromagnetic 16 | . . 16 Robot Hit Streak 17 | . 17 6 Robot Miss Streak 4 | . 4 4 Penetration Max . | . . . Secondary Targets 1 | . . 1 Max Gunslinging Chain 1 | . . 1 Shots Hit Robots 80 | . 63 17 Core Hits 37 | . 27 10 Critical Kills . | . . . Critical Parts Destroyed . | . . . Critical Strikes . | . . . Melee Attacks . | . . . Impact . | . . . Slashing . | . . . Piercing . | . . . Sneak Attacks . | . . . Combat Hostiles . | . . . Follow-up Attacks . | . . . Damage Inflicted 1169 | . 766 403 Guns 997 | . 766 231 Cannons . | . . . Explosions 172 | . . 172 Melee . | . . . Ramming . | . . . Kinetic 663 | . 553 110 Thermal 213 | . 213 . Explosive 172 | . . 172 Electromagnetic 121 | . . 121 Impact . | . . . Slashing . | . . . Piercing . | . . . Highest Corruption . | . . . Average Corruption . | . . . Corruption Purged . | . . . Corruption Blocked . | . . . Overload Shots . | . . . Overflow Damage 20 | . . 20 Projectiles . | . . . Explosions 20 | . . 20 Melee . | . . . Knockbacks . | . . . Impact . | . . . Kinetic . | . . . Secondary . | . . . Self-Inflicted Damage . | . . . Shots . | . . . Rammed . | . . . Targets Rammed . | . . . Kicked . | . . . Crushed . | . . . Highest Temperature 390 | . 390 125 Average Temperature 90 | . 103 46 Received Heat Transfer 288 | . 216 72 Effects 1 | . 1 . Damage (minor) 1 | . 1 . Siege Activations . | . . . Robots Corrupted . | . . . Combat Hostiles . | . . . Parts Fried 1 | . . 1 Impact Corruptions . | . . . Robots Melted . | . . . Combat Hostiles . | . . . Parts Melted 2 | . 2 . Heat Transferred 511 | . 511 . Parts Sabotaged . | . . . Parts Stolen . | . . . Parts Stripped . | . . . Power Chain Reactions . | . . . Missiles Intercepted . | . . . Alert | -11 -10 -10 ------- Run | Jun Mat Min Peak Influence 290 | . 290 199 Initial 25 | . . 25 Average 98 | . 100 95 Maximum Alert Level 1 | . 1 . Low Security (%) 91 | 100 89 100 Level 1 8 | . 10 . Level 2 . | . . . Level 3 . | . . . Level 4 . | . . . Level 5 . | . . . High Security . | . . . Max Security . | . . . Squads Dispatched 3 | . 3 . Investigation 2 | . 2 . Extermination . | . . . Reinforcement 1 | . 1 . Assault . | . . . Garrison . | . . . Intercept . | . . . Searches Triggered . | . . . Construction Impeded . | . . . Haulers Reinforced . | . . . Active Scanning Responses . | . . . Cargo Convoy Interrupts . | . . . Stealth | -11 -10 -10 --------- Run | Jun Mat Min Distress Signals 1 | . 1 . Communications Jammed . | . . . Distress Signals . | . . . Times Spotted 32 | . 22 10 Peak Tracking Total 3 | . 3 3 Tactical Retreats 2 | . 2 . Traps | -11 -10 -10 ------- Run | Jun Mat Min Traps Triggered 2 | . 2 . Indirectly . | . . . Trap Hack Attempts . | . . . Triggered . | . . . Disarmed . | . . . Reprogrammed . | . . . Reused . | . . . Traps Extracted . | . . . Installed . | . . . Triggered . | . . . Machines | -11 -10 -10 ---------- Run | Jun Mat Min Machines Disabled . | . . . Max in Single Turn . | . . . Machines Repaired . | . . . Machines Sabotaged . | . . . Overloaded Fab Kills . | . . . Hacking | -11 -10 -10 --------- Run | Jun Mat Min Machines Accessed 9 | . 9 . Terminals 7 | . 7 . Fabricators . | . . . Repair Stations . | . . . Recycling Units 2 | . 2 . Scanalyzers . | . . . Garrison Access . | . . . Total Hacks 25 | . 25 . Successful 10 | . 10 . Failed 14 | . 14 . Catastrophic 2 | . 2 . Database Lockouts 1 | . 1 . Manual 13 | . 13 . Terminals 21 | . 21 . Fabricators . | . . . Repair Stations . | . . . Recycling Units 4 | . 4 . Scanalyzers . | . . . Garrison Access . | . . . Terminal Hacks 7 | . 7 . Part Schematic 2 | . 2 . Prototype ID Bank 1 | . 1 . Emergency Access Points 1 | . 1 . Unreport Threat 1 | . 1 . Locate Traps 1 | . 1 . Zone Layout 1 | . 1 . Fabricator Hacks . | . . . Repair Station Hacks . | . . . Recycling Unit Hacks 2 | . 2 . Retrieve Components 2 | . 2 . Scanalyzer . | . . . Garrison Access Hacks . | . . . Unauthorized Hacks 1 | . 1 . Terminals . | . . . Fabricators . | . . . Repair Stations . | . . . Recycling Units 1 | . 1 . Tunnel 1 | . 1 . Scanalyzers . | . . . Garrison Access . | . . . Data Cores Recovered . | . . . Used . | . . . Hacking Detections 8 | . 8 . Full Trace Events . | . . . Feedback Events . | . . . Feedback Blocked . | . . . Robot Schematics Acquired . | . . . Robots Built . | . . . Authchips . | . . . Time . | . . . Total Robot Build Rating . | . . . Part Schematics Acquired 2 | . 2 . Parts Built . | . . . Authchips . | . . . Time . | . . . Total Part Build Rating . | . . . Parts Repaired . | . . . Time . | . . . Parts Recycled . | . . . Recycled Matter . | . . . Retrieved Matter . | . . . Retrieved Components 10 | . 10 . Parts Scanalyzed . | . . . Part Schematics Acquired . | . . . Parts Damaged . | . . . Bothacking | -11 -10 -10 ------------ Run | Jun Mat Min Used RIF Installer . | . . . Robots Hacked . | . . . Non-combat . | . . . Combat . | . . . Robot Hacks Applied . | . . . Relay Couplers Released . | . . . Fabnet Peak Effective % . | . . . Robots Rewired . | . . . Allies Hacked . | . . . Hacks Repelled . | . . . Allies | -11 -10 -10 -------- Run | Jun Mat Min Total Allies . | . . . Largest Group . | . . . Highest-Rated Group . | . . . Highest-Rated Ally . | . . . Total Orders . | . . . Ally Attacks . | . . . Total Damage . | . . . Kills . | . . . Allies Corrupted . | . . . Allies Melted . | . . . Intel | -11 -10 -10 ------- Run | Jun Mat Min Robot Analysis Total . | . . . Derelict Logs Recovered 2 | . . 2 Drone Launches . | . . . Drone Recoveries . | . . . Exploration | -11 -10 -10 ------------- Run | Jun Mat Min Turns Passed 1347 | 7 1109 231 Spaces Moved 699 | 3 580 116 Core . | . . . Treads 29 | 3 26 . Legs . | . . . Wheels 670 | . 554 116 Hover . | . . . Flight . | . . . Fastest Speed 130 | 160 140 130 Average Speed 145 | 160 145 144 Slowest Speed 160 | 160 160 145 Overloaded Moves . | . . . Propulsion Burnouts . | . . . Robots Hopped . | . . . Cave-ins Triggered . | . . . Exploration Rate (%) 44 | 2 98 32 Regions Visited 2 Branch Regions 1 Pre-discovered Areas 1 | . 1 . Known Exits Taken . | . . . Unknown Exits Taken 2 | 1 1 . Scrap Searched 2 | . . 2 Spaces Dug 6 | . . 6 Terrain Destroyed 16 | . . 16 Melee . | . . . Projectile . | . . . AOE 16 | . . 16 Terrain Rammed . | . . . Walls Destroyed . | . . . Machines Disabled . | . . . Actions | -11 -10 -10 --------- Run | Jun Mat Min Total 899 | 6 748 145 Wait 88 | . 86 2 Move 697 | 2 579 116 Hop . | . . . Pick Up 15 | . 12 3 Fast Attach 6 | . 6 . Attach 9 | 2 3 4 Detach 3 | . 3 . Swap 5 | . 3 2 Drop 9 | 2 7 . Fire 67 | . 49 18 Melee . | . . . Ram . | . . . Kick . | . . . Crush . | . . . Escape Stasis . | . . . Rewire . | . . . Trap . | . . . Miscellaneous . | . . . Route ------- -11/Junkyard -10/Materials (discovered 6 exits: [*Mat x3] / [*Min x2] / [Sub]) -10/Mines (discovered 2 exits: [*Mat x2]) History --------- Turn | Location | Event 4 | -11/Junkyard | Discovered new exit (range 0) 8 | -11/Junkyard | Entered Materials 37 | -10/Materials | Discovered new exit (range 14) 100 | -10/Materials | Discovered new exit (range 16) 312 | -10/Materials | Build established: Mutant 436 | -10/Materials | Discovered new exit (range 13) 641 | -10/Materials | Discovered new exit (range 11) 641 | -10/Materials | Central database locked down 665 | -10/Materials | Discovered new exit (range 7) 803 | -10/Materials | Discovered new exit (range 12) 1117 | -10/Materials | Entered Mines 1145 | -10/Mines | Discovered new exit (range 16) 1212 | -10/Mines | Received a Rocket Launcher from a helpful Derelict 1254 | -10/Mines | Discovered new exit (range 12) 1260 | -10/Mines | Learned 8 Materials zone layouts 1333 | -10/Mines | Assembled infested the area 1344 | -10/Mines | Core integrity fell below 50% 1346 | -10/Mines | Core integrity fell below 20% 1348 | -10/Mines | Destroyed by D-53 Grenadier with Mini Grenade Launcher Last Messages --------------- 01306_ T-07 Excavator is excavating. 01327_ EM Pulse Gun destroyed. 01328_ Destroyed Lgt. Ion Engine. 01328_ S-10 Pest destroyed. 01333_ ALERT: Infestation in the mines, dispatching Demolisher response squad. 01333_ S-10 Pest destroyed. 01336_ 3L-ES9(h): "I'll hold them off! Go on ahead or try to find another way!" 01336_ C-30 ARC bursts open, deploying its payload. 01336_ D-53 Grenadier unfolds itself. 01336_ 3L-ES9(h) destroyed. 01337_ Ion Engine destroyed. 01340_ K-01 Serf collects debris. 01341_ EM Pulse Gun destroyed. 01341_ Com. Wheel destroyed. 01343_ EM Pulse Gun destroyed. 01343_ K-01 Serf collects debris. 01345_ Lgt. Treads destroyed. 01346_ The unstable cave ceiling collapses. Map ----- +----------------------------------------------------+ | ??# #????????????????????????????????????????????? | | ??# #????????????????????????????????????????????? | | ??# #????????????????????????????????????????????? | | ??# ##???????????????????????????????????????????? | | ?## ##??????????????????????????????????????????? | | ?# ##?????????????????????????????????????????? | | ?# ##????????????????????????????????????????? | | ?# ##???????????????????????????????????????? | | ?# #???????????????????????????????????????? | | ?## #???????????????????????????????????????? | | ??#### ##????????????????? ????????????????????? | | ?????# #?????????????????? #???????????????????? | | ?????# #?????????????????? #???????????????????? | | ?????# #?????????????????# #???????????????????? | | ?????# #?????????????????# #???????????????????? | | ?????# #?????????????????# #???????????????????? | | ?????# ##?????????###????# ##??????????????????? | | ?????# #????????? #???## ##?????????????????? | | ?????# #?????????# #???# ##????????????????? | | ?????## #?????????# #???# ##?######????????? | | ??????# #?????????# #?### ## ###??????? | | ??????# #?????????# ### # ##?????? | | ??????# #?????????# ## k #?????? | | ??????# #?????????# # #????? | | ??????# #?????????# %% d #????? | | ??????# #??######## ## d@ #?????? | | ??????# #??# #???? | | ??????# =#### < = #???? | | ??????# [ = %= = #???? | | ??????####### """ """ ## % #???? | | ????????????# """ """ ### # ????? | | ????????????# """ """ #?### ###?? # ????? | | ????????????# #???## #?????????????? | | ????????????############????# #?????????????? | | ????????????????????????????## #?????????????? | | ??????????????????????????????# ##?????????????? | | ???????????????????????????????####??????????????? | | ?????????????????????????????????????????????????? | | ?????????????????????????????????????????????????? | | ?????????????????????????????????????????????????? | | ?????????????????????????????????????????????????? | | | | | | | | | | | | | | | | | | | +----------------------------------------------------+ Best States ------------- Heat Dissipation 25 Energy Generation 10 Energy Capacity 250 Matter Stores 300 Matter Capacity 300 Sight Range 16 Terrain Scan Density 10 Armor Coverage 150 Evasion (%) 40 Targeting Accuracy 5 Recoil Reduction 2 Item Schematics ----------------- Huge Storage Unit | -10/Materials | Hacked Hcp. Storage Unit | -10/Materials | Hacked Robot Schematics ------------------ None Fabricated ------------ Nothing Alien Tech Used ----------------- None Achievements -------------- None Challenges ------------ None Game ------ Seed ComponentDeepExpander Manual? 0 Play Time 00:10:06 Cumulative 820.2 hours Start 2023.07.23 @ 23:55:03 End 2023.07.24 @ 00:12:26 Sessions 1 Manual Loads 0 Difficulty Rogue Special Mode None Game No. 710 Rogue 710 Adventurer 0 Explorer 0 Win Type - Total 40 Types 14/7/8/1/1/1/6/1/1 Lore% 93 Gallery% 96 Achievement% 82 Wizard Run 0 Options --------- ASCII 0 Keyboard 0 Movement Mouse Keybinds 1 Fullscreen 2 Font 24/Smallcaps Map View 76x50 Tactical HUD 1 Map Filters NONE Filters NONE Steam 1 RUN: b1becf9a-68d4-4b18-a995-18a22dc0c721